bitfinex-derivatives/quotes_ETHF0:USTF0_20250217
["timestamp","ask_amount","ask_price","bid_price","bid_amount"]
[1739836384209,1.1129,2743.0,2742.5,1.6803]
[1739836384408,1.69618,2743.0,2742.7,0.58332]
[1739836384711,0.5833,2742.9,2742.6,0.58335]
[1739836385111,1.1129,2743.0,2742.6,0.58335]
[1739836385315,1.1129,2743.0,2742.7,0.58333]
[1739836385316,0.5833,2742.9,2742.7,0.58333]
[1739836385513,0.5833,2742.9,2742.5,4.8881]
[1739836385711,0.5833,2742.9,2742.6,0.58335]
[1739836386008,2.387,2743.1,2742.5,4.8881]
[1739836386413,0.58324,2743.2,2742.8,0.5833]
[1739836386615,1.10792,2743.3,2742.7,2.82441685]
[1739836386805,0.58324,2743.2,2742.9,0.58329]
[1739836387315,0.58324,2743.2,2742.8,0.5833]
[1739836387510,0.58326,2743.1,2742.8,0.5833]
[1739836387703,0.58323,2743.2,2742.8,0.5833]
[1739836387903,0.58323,2743.2,2742.9,0.58329]
[1739836388308,0.5247,2743.3,2742.8,3.2078]
[1739836388714,1.10792,2743.3,2742.9,0.58328]
[1739836389012,1.10792,2743.3,2743.0,0.58326]
[1739836389212,1.10792,2743.3,2742.8,3.2078]
[1739836389213,0.5247,2743.3,2742.8,3.2078]
[1739836389515,0.5247,2743.3,2743.2,0.58323]
[1739836389710,3.52047,2743.5,2743.2,0.58323]
[1739836389911,0.58321,2743.4,2743.0,0.58326]
[1739836390107,2.9373,2743.5,2742.8,3.2078]
[1739836390307,0.58319,2743.4,2743.0,0.58325]
[1739836390512,2.9373,2743.5,2742.8,3.2078]
[1739836390713,0.58321,2743.3,2742.8,3.2078]
[1739836390909,0.58321,2743.3,2743.0,0.58327]
[1739836391112,2.9373,2743.5,2743.0,0.58327]
[1739836391313,2.9373,2743.5,2742.8,3.2078]
[1739836391512,0.58325,2743.1,2742.8,3.79111]
[1739836391712,0.58325,2743.2,2742.8,3.79111]
[1739836392211,0.58325,2743.2,2742.9,0.58329]
[1739836392719,0.5489,2743.1,2742.9,0.58329]
[1739836393120,0.5489,2743.1,2742.9,0.5512]
[1739836393420,0.5489,2743.1,2743.0,0.58327]
[1739836394724,2.9373,2743.5,2742.9,0.5512]
[1739836394907,1.13209,2743.4,2743.2,0.58322]
[1739836395111,0.5489,2743.4,2742.9,0.5512]
[1739836395308,1.1321,2743.4,2743.2,0.58323]
[1739836395721,0.5489,2743.4,2743.0,0.58327]
[1739836396415,0.58323,2743.2,2743.0,0.58327]
[1739836396616,0.5489,2743.4,2743.2,0.58322]
[1739836396822,1.13209,2743.4,2743.2,0.58322]
[1739836397220,0.5489,2743.4,2743.3,0.58321]
[1739836397517,0.5489,2743.4,2743.2,0.58322]
[1739836398022,0.5489,2743.4,2743.3,0.58321]
[1739836398823,1.13209,2743.4,2743.2,0.58321]
[1739836399119,1.13209,2743.4,2742.9,0.5512]
[1739836399317,5.5938,2743.7,2743.0,2.82441685]
[1739836399522,0.58315,2743.6,2743.3,0.58319]
[1739836399719,0.58315,2743.6,2743.4,1.16319]
[1739836399917,0.58314,2743.6,2743.4,0.58]
[1739836400117,0.58314,2743.6,2743.4,1.16318]
[1739836400518,1.1113,2743.7,2743.4,1.16318]
[1739836400821,1.1113,2743.7,2743.4,0.58]
[1739836401029,1.1113,2743.7,2743.6,0.58314]
[1739836403423,1.1113,2743.7,2743.4,0.58]
[1739836403424,0.58309,2743.9,2743.4,3.7878]
[1739836403727,0.5414,2743.9,2743.4,3.7878]
[1739836403923,1.12449,2743.9,2743.7,0.58311]
[1739836404122,0.5414,2743.9,2743.7,0.58311]
[1739836404527,1.12449,2743.9,2743.7,0.58311]
[1739836404726,1.12449,2743.9,2743.7,0.58312]
[1739836404927,0.5414,2743.9,2743.7,3.79092]
[1739836405129,1.12449,2743.9,2743.7,3.79092]
[1739836405528,0.5414,2743.9,2743.7,3.79092]
[1739836405924,1.12449,2743.9,2743.7,3.79092]
[1739836406125,0.5414,2743.9,2743.7,3.2078]
[1739836406526,1.12449,2743.9,2743.7,3.79091]
[1739836406829,1.12449,2743.9,2743.7,3.79092]
[1739836407022,0.5414,2743.9,2743.7,3.2078]
[1739836407223,0.5414,2743.9,2743.8,0.5831]
[1739836407424,0.5414,2743.9,2743.8,1.7003]
[1739836408125,5.5938,2744.3,2744.1,0.58303]
[1739836408635,5.5938,2744.3,2744.2,0.5706]
[1739836409034,6.1768,2744.3,2744.2,0.5706]
[1739836409230,0.58297,2744.4,2744.2,0.5706]
[1739836409721,0.5485,2744.5,2744.2,0.5706]
[1739836409921,0.58299,2744.4,2744.2,0.5706]
[1739836410731,0.5485,2744.5,2744.2,0.5706]
[1739836410930,0.583,2744.3,2744.2,0.5706]
[1739836411131,0.58299,2744.4,2744.2,0.5706]
[1739836411338,0.5485,2744.5,2744.2,0.5706]
[1739836411525,0.583,2744.3,2744.2,0.5706]
[1739836412232,0.58299,2744.4,2744.2,1.1536]
[1739836412430,0.5485,2744.5,2744.2,0.5706]
[1739836412830,0.583,2744.3,2744.2,0.5706]
[1739836413228,0.5485,2744.5,2744.2,0.5706]
[1739836413428,0.583,2744.3,2744.2,0.5706]
[1739836415727,0.00178609,2744.4,2744.2,0.5706]
[1739836415936,0.00178609,2744.4,2744.3,0.583]
[1739836416239,0.00178609,2744.4,2744.3,1.1538]
[1739836419736,0.00178609,2744.4,2744.3,0.5708]
[1739836420137,0.583,2744.3,2744.2,0.5706]
[1739836420328,0.583,2744.3,2744.2,1.15362]
[1739836420531,0.583,2744.3,2744.2,0.5706]
[1739836420841,0.583,2744.3,2744.0,3.79631647]
[1739836421031,0.583,2744.3,2744.0,3.76926647]
[1739836421230,0.583,2744.3,2744.1,0.58303]
[1739836422239,0.58302,2744.2,2744.0,4.35231647]
[1739836422439,0.58304,2744.1,2744.0,3.21326647]
[1739836422634,1.15754,2744.1,2744.0,0.00546647]
[1739836423943,0.5745,2744.1,2744.0,0.58852647]
[1739836425533,0.00178609,2744.4,2744.1,0.58304]
[1739836425729,1.13526609,2744.4,2744.2,0.58301]
[1739836425929,0.00178609,2744.4,2744.3,0.583]
[1739836426438,0.00178609,2744.4,2744.2,1.133]
[1739836426639,0.58476609,2744.4,2744.2,1.716]
[1739836427139,0.583,2744.3,2744.2,1.716]
[1739836427342,0.58476609,2744.4,2744.2,1.716]
[1739836427736,0.583,2744.3,2744.2,1.133]
[1739836428040,0.58302,2744.2,2744.1,3.7634]
[1739836428344,0.58302,2744.2,2744.1,0.5556]
[1739836428534,0.54598609,2744.4,2744.1,0.5556]
[1739836428845,0.58301,2744.3,2744.1,1.13864]
[1739836429739,1.12897609,2744.4,2744.1,0.5556]
[1739836429937,1.12897609,2744.4,2744.2,0.58301]
[1739836430138,0.54598609,2744.4,2744.1,0.5556]
[1739836430341,0.583,2744.3,2744.2,0.58302]
[1739836430742,0.583,2744.3,2744.1,1.13862]
[1739836430945,1.12897609,2744.4,2744.2,0.58301]
[1739836431437,0.58477609,2744.4,2744.2,0.58301]
[1739836432139,0.583,2744.3,2744.2,0.58301]
[1739836432544,0.583,2744.3,2744.1,1.13863]
[1739836432742,0.00178609,2744.4,2744.1,1.13863]
[1739836432943,0.58301,2744.3,2744.1,1.13863]
[1739836433443,0.00178609,2744.4,2744.1,0.5556]
[1739836433642,0.58302,2744.2,2744.1,1.13864]
[1739836434043,0.58302,2744.2,2744.1,0.5556]
[1739836434645,0.58302,2744.2,2744.1,1.13864]
[1739836435439,0.00178609,2744.4,2744.1,0.5556]
[1739836435846,0.00178609,2744.4,2744.3,0.583]
[1739836436136,0.583,2744.3,2744.2,0.58301]
[1739836437039,0.58302,2744.2,2744.1,0.5556]
[1739836437244,0.58302,2744.2,2744.1,1.13864]
[1739836437841,0.00178609,2744.4,2744.1,1.13864]
[1739836438340,0.58302,2744.2,2744.1,0.5556]
[1739836438840,0.58302,2744.2,2744.1,1.13863]
[1739836439947,0.58302,2744.2,2744.1,1.13864]
[1739836441045,0.58302,2744.2,2744.1,0.5556]
[1739836442243,0.58304,2744.1,2744.0,0.00546647]
[1739836442444,1.66034,2744.1,2744.0,0.00546647]
[1739836444447,1.66034,2744.1,2744.0,0.58852647]
[1739836444752,0.5291,2744.1,2744.0,0.58852647]
[1739836445256,1.11214,2744.1,2744.0,0.00546647]
[1739836445948,0.5291,2744.1,2744.0,0.00546647]
[1739836446157,3.20958609,2744.4,2744.0,0.58852647]
[1739836446450,0.58303,2744.2,2744.0,0.58852647]
[1739836446652,0.58304,2744.1,2744.0,0.58852647]
[1739836447355,0.58303,2744.2,2744.0,0.58852647]
[1739836447650,0.58304,2744.1,2744.0,0.58852647]
[1739836448253,3.75748609,2744.4,2744.1,0.58303]
[1739836448254,0.583,2744.3,2744.1,0.58303]
[1739836448453,0.58304,2744.1,2744.0,0.00546647]
[1739836459759,3.79084,2744.1,2744.0,0.00546647]
[1739836460963,0.58314,2743.7,2743.5,5.46285]
[1739836461162,0.5709,2743.6,2743.5,5.46285]
[1739836461349,1.15404,2743.6,2743.5,0.5633]
[1739836462160,1.15404,2743.6,2743.5,1.14647]
[1739836462360,1.15404,2743.6,2743.5,0.5633]
[1739836465865,1.15404,2743.6,2743.5,1.14647]
[1739836468062,0.00543287,2743.8,2743.5,0.5633]
[1739836468263,0.57353287,2743.8,2743.5,1.14645]
[1739836468569,0.58314,2743.6,2743.5,1.14645]
[1739836469162,0.57353287,2743.8,2743.5,0.5633]
[1739836469364,0.00543287,2743.8,2743.7,0.58312]
[1739836470959,0.00543287,2743.8,2743.7,3.40753685]
[1739836471162,3.73918609,2744.4,2743.7,2.82441685]
[1739836471163,6.74465609,2744.4,2743.7,2.82441685]
[1739836471371,6.16168609,2744.4,2744.1,0.58302]
[1739836471667,6.74466609,2744.4,2744.1,0.58302]
[1739836471863,6.74466609,2744.4,2744.2,0.5513]
[1739836472069,0.583,2744.3,2744.2,0.5513]
[1739836473469,3.20958609,2744.4,2744.2,0.5513]
[1739836473677,0.583,2744.3,2744.2,0.5513]
[1739836474169,3.79257609,2744.4,2744.2,0.5513]
[1739836474369,3.79257609,2744.4,2744.3,1.0527]
[1739836475166,3.20958609,2744.4,2744.2,0.5513]
[1739836475374,0.583,2744.3,2744.2,0.5513]
[1739836475868,3.20958609,2744.4,2744.2,0.5513]
[1739836476070,0.583,2744.3,2744.2,0.5513]
[1739836478368,0.00178609,2744.4,2744.3,0.583]
[1739836479168,0.58475609,2744.4,2744.3,0.583]
[1739836480569,0.00178609,2744.4,2744.3,0.583]
[1739836480765,0.58475609,2744.4,2744.3,0.583]
[1739836481173,0.00178609,2744.4,2744.3,0.583]
[1739836481374,0.58475609,2744.4,2744.3,0.583]
[1739836481966,0.00178609,2744.4,2744.3,0.583]
[1739836482678,0.58475609,2744.4,2744.3,0.583]
[1739836484275,0.00178609,2744.4,2744.3,0.583]
[1739836487876,2.06017854,2744.8,2744.2,3.7591]
[1739836488071,1.0889,2744.9,2744.3,2.82441685]
[1739836488072,0.5345,2744.9,2744.3,2.82441685]
[1739836488277,0.58289,2744.8,2744.6,0.58292]
[1739836488478,0.58289,2744.8,2744.7,1.0972]
[1739836488780,1.11739,2744.9,2744.7,1.6274]
[1739836488976,0.5345,2744.9,2744.7,2.21031]
[1739836489180,1.45694,2745.4,2744.7,2.21031]
[1739836489181,2.383,2745.2,2744.7,1.6274]
[1739836489570,2.96582,2745.2,2744.7,1.63286647]
[1739836489775,1.6515,2745.3,2745.0,0.58285]
[1739836489970,1.6515,2745.3,2745.1,0.5327]
[1739836490280,1.0687,2745.3,2745.1,0.53091391]
[1739836490675,1.0687,2745.3,2744.9,3.2078]
[1739836490876,0.58284,2745.1,2744.9,3.79067]
[1739836491280,1.0687,2745.3,2744.8,0.58288]
[1739836491485,0.58284,2745.1,2744.8,0.58288]
[1739836491781,0.58284,2745.1,2744.9,0.58286]
[1739836492380,3.2078,2745.5,2744.9,6.03221685]
[1739836492576,3.7817,2745.5,2744.9,6.03221685]
[1739836492887,0.58279,2745.3,2744.9,6.61507685]
[1739836493380,1.1613,2745.4,2744.9,6.03221685]
[1739836493586,1.74408,2745.4,2745.1,0.58282]
[1739836493784,0.58279,2745.3,2745.0,1.11743]
[1739836494380,1.1613,2745.4,2745.0,0.5346]
[1739836494688,1.74408,2745.4,2745.1,0.58282]
[1739836494881,0.58278,2745.4,2745.0,0.5346]
[1739836495078,0.58278,2745.4,2745.1,0.58281]
[1739836495282,0.58278,2745.3,2745.2,1.1198]
[1739836495479,0.58284,2745.1,2744.9,3.2078]
[1739836495687,0.5732,2745.0,2744.9,3.2078]
[1739836496175,0.5732,2745.0,2744.7,0.00546647]
[1739836496381,0.58289,2744.8,2744.7,0.00546647]
[1739836497488,0.5732,2745.0,2744.7,0.00546647]
[1739836497680,0.58287,2744.9,2744.7,0.00546647]
[1739836497877,0.58289,2744.8,2744.7,0.00546647]
[1739836499289,0.5732,2745.0,2744.7,0.00546647]
[1739836499687,0.58289,2744.8,2744.7,0.00546647]
[1739836499882,0.58288,2744.9,2744.7,0.00546647]
[1739836500087,0.5732,2745.0,2744.7,0.00546647]
[1739836500287,3.2078,2745.1,2744.7,1.11216647]
[1739836500591,3.2078,2745.1,2744.9,0.58286]
[1739836500897,3.79063,2745.1,2744.9,0.58286]
[1739836501191,3.2078,2745.1,2744.8,0.58287]
[1739836501391,3.2078,2745.1,2744.7,1.11216647]
[1739836501579,3.79064,2745.1,2744.7,1.11216647]
[1739836501892,1.67802,2745.2,2745.0,0.58285]
[1739836502096,1.0952,2745.2,2744.8,3.2078]
[1739836502289,0.58287,2744.9,2744.8,3.2078]
[1739836502493,0.58289,2744.8,2744.7,0.00546647]
[1739836502688,1.12379,2744.8,2744.7,0.00546647]
[1739836503992,3.50579,2744.8,2744.7,0.00546647]
[1739836506787,0.58304,2744.1,2743.8,0.5831]
[1739836507686,0.58304,2744.1,2743.9,0.58308]
[1739836507893,0.58304,2744.1,2743.8,0.58308]
[1739836508291,0.58304,2744.1,2743.7,1.38762171]
[1739836508491,0.58304,2744.1,2743.8,0.58309]
[1739836508697,1.13826647,2744.2,2743.7,1.09256647]
[1739836508890,0.58308,2743.9,2743.7,1.67568647]
[1739836509389,0.58308,2743.9,2743.7,1.09256647]
[1739836509896,0.58308,2743.9,2743.7,1.67568647]
[1739836510598,0.58307,2744.0,2743.8,0.5831]
[1739836511391,0.58307,2744.0,2743.7,1.67566647]
[1739836511691,0.58307,2744.0,2743.7,1.09256647]
[1739836511891,0.58308,2744.0,2743.7,1.67567647]
[1739836513195,0.58308,2744.0,2743.8,0.5831]
[1739836513399,0.58308,2744.0,2743.7,1.67567647]
[1739836513599,1.68946647,2744.2,2743.7,1.67567647]
[1739836513799,0.58307,2744.0,2743.7,1.67567647]
[1739836514093,0.58308,2743.9,2743.7,1.67567647]
[1739836514499,0.58307,2744.0,2743.7,1.67567647]
[1739836515500,0.58307,2744.0,2743.8,0.58309]
[1739836515702,1.68946647,2744.2,2743.7,1.09256647]
[1739836515899,2.27249647,2744.2,2743.9,0.58307]
[1739836516098,1.68946647,2744.2,2743.7,1.09256647]
[1739836516297,0.58307,2744.0,2743.8,0.58309]
[1739836517497,2.27249647,2744.2,2743.8,0.58309]
[1739836517700,0.58306,2744.1,2743.8,0.58309]
[1739836517894,0.58307,2744.0,2743.8,0.58309]
[1739836518093,1.68946647,2744.2,2743.7,1.09256647]
[1739836518299,0.5831,2743.8,2743.7,1.09256647]
[1739836519699,0.58305,2744.1,2743.7,1.09256647]
[1739836519905,0.58306,2744.1,2743.7,1.67567647]
[1739836520297,0.58306,2744.1,2743.8,0.5831]
[1739836520498,0.58307,2744.0,2743.9,0.5423]
[1739836523000,2.96505,2744.1,2743.9,0.5423]
[1739836524404,2.382,2744.1,2743.9,0.5423]
[1739836524800,0.58306,2744.0,2743.9,0.5423]
[1739836527509,0.58309,2743.9,2743.7,1.67567647]
[1739836529407,0.5831,2743.9,2743.7,1.67567647]
[1739836530011,2.382,2744.1,2743.7,1.09256647]
[1739836530205,2.382,2744.1,2743.8,0.58309]
[1739836530404,0.58308,2743.9,2743.7,1.67566647]
[1739836532809,2.382,2744.1,2743.7,1.09256647]
[1739836532810,0.5831,2743.8,2743.7,1.09256647]
[1739836533611,0.5831,2743.8,2743.7,1.67568647]
[1739836534014,0.5831,2743.8,2743.7,1.09256647]
[1739836535915,0.58309,2743.9,2743.7,1.09256647]
[1739836536116,2.382,2744.1,2743.8,0.58309]
[1739836536815,0.5831,2743.8,2743.7,1.67567647]
[1739836537114,0.5831,2743.9,2743.8,0.5831]
[1739836537311,0.5831,2743.8,2743.7,1.67567647]
[1739836541221,0.5831,2743.8,2743.7,1.09256647]
[1739836542516,2.382,2744.0,2743.7,1.09256647]
[1739836542819,0.5831,2743.8,2743.7,1.09256647]
[1739836546418,0.5831,2743.8,2743.7,0.00546647]
[1739836558630,1.84644825,2743.8,2743.7,0.00546647]
[1739836565034,1.84644825,2743.8,2743.1,2.37848825]
[1739836565035,1.26334825,2743.8,2743.1,0.5319]
[1739836565234,0.58323,2743.2,2743.1,0.5319]
[1739836575431,0.58323,2743.2,2743.1,1.11514]
[1739836575740,0.58323,2743.2,2743.1,0.5319]
[1739836576734,2.96423,2743.2,2743.1,0.5319]
[1739836582942,0.58323,2743.2,2743.1,1.11514]
[1739836583151,0.58323,2743.2,2743.1,0.5319]
[1739836590047,0.58323,2743.2,2743.1,1.11515]
[1739836590645,0.58323,2743.2,2743.1,0.5319]
[1739836592349,0.58323,2743.2,2743.1,1.11515]
[1739836592546,0.58323,2743.2,2743.1,0.5319]
[1739836592749,2.381,2743.3,2743.1,1.11515]
[1739836592948,2.381,2743.3,2743.0,0.58326]
[1739836593247,0.58324,2743.2,2743.1,1.12475]
[1739836593451,0.5655,2743.4,2743.1,0.5415]
[1739836593648,3.2078,2743.6,2743.2,4.47114825]
[1739836593849,5.5878,2743.6,2743.4,1.26334825]
[1739836594052,2.38,2743.6,2743.5,1.1327]
[1739836594251,2.96314,2743.6,2743.5,1.6742]
[1739836594547,2.96314,2743.6,2743.5,2.25737]
[1739836594748,0.58318,2743.5,2743.2,3.2078]
[1739836594958,2.38,2743.6,2743.4,0.58318]
[1739836595252,0.58317,2743.5,2743.4,0.58318]
[1739836598857,2.38,2743.6,2743.3,2.93754825]
[1739836599057,1.12279,2743.5,2743.3,3.52074825]
[1739836599556,0.5396,2743.5,2743.3,2.93754825]
[1739836599750,0.58319,2743.4,2743.3,3.52074825]
[1739836600554,1.12278,2743.5,2743.4,0.58319]
[1739836600758,1.12277,2743.5,2743.4,0.58319]
[1739836601057,0.5396,2743.5,2743.4,0.58319]
[1739836601957,1.12277,2743.5,2743.4,0.58319]
[1739836602558,1.12278,2743.5,2743.4,0.58319]
[1739836603262,0.58318,2743.5,2743.4,0.58319]
[1739836603466,2.38,2743.6,2743.4,0.58319]
[1739836603956,0.58317,2743.5,2743.4,0.58319]
[1739836605250,2.38,2743.6,2743.5,0.58317]
[1739836605455,1.13532,2743.8,2743.6,0.58314]
[1739836605764,3.51532,2743.8,2743.7,1.6897]
[1739836606961,0.58316,2743.6,2743.4,0.58318]
[1739836607161,0.58316,2743.6,2743.4,1.84652825]
[1739836607461,0.58313,2743.7,2743.6,0.58314]
[1739836608361,0.58313,2743.7,2743.5,0.58316]
[1739836608554,2.9322,2743.8,2743.4,1.26334825]
[1739836608755,0.58314,2743.7,2743.5,0.58316]
[1739836608950,0.58314,2743.7,2743.6,0.58314]
[1739836610765,0.58314,2743.7,2743.4,1.26334825]
[1739836610962,2.9322,2743.8,2743.5,0.58316]
[1739836611159,0.58312,2743.7,2743.5,0.58316]
[1739836611356,0.58312,2743.7,2743.6,0.5791]
[1739836613962,0.58312,2743.7,2743.6,1.16224]
[1739836614264,0.58312,2743.7,2743.6,0.5791]
[1739836615762,2.9322,2743.8,2743.3,1.6943]
[1739836615961,0.58319,2743.4,2743.3,1.1111]
[1739836616567,0.58319,2743.4,2743.3,1.69431]
[1739836616763,0.58319,2743.4,2743.3,1.1111]
[1739836616964,0.58319,2743.4,2743.3,1.69431]
[1739836623074,2.9322,2743.8,2743.3,1.1111]
[1739836623274,0.5522,2743.8,2743.4,1.81684825]
[1739836623572,2.379,2743.7,2743.4,1.81684825]
[1739836623977,0.58317,2743.5,2743.4,2.40003825]
[1739836624272,0.58317,2743.5,2743.4,2.40002825]
[1739836624477,0.58317,2743.5,2743.4,1.81684825]
[1739836624779,0.58317,2743.5,2743.4,0.5535]
[1739836625382,0.58317,2743.5,2743.4,1.13669]
[1739836627077,0.58315,2743.6,2743.5,0.58316]
[1739836627470,0.58313,2743.7,2743.6,0.58314]
[1739836627670,0.58313,2743.7,2743.5,0.58315]
[1739836627671,2.96213,2743.7,2743.5,0.58315]
[1739836627975,2.379,2743.7,2743.5,0.58315]
[1739836628174,0.58314,2743.6,2743.5,0.58315]
[1739836628675,2.379,2743.7,2743.4,1.81684825]
[1739836628875,0.58316,2743.6,2743.5,0.58317]
[1739836629074,2.379,2743.7,2743.4,1.81684825]
[1739836629075,2.379,2743.7,2743.4,2.40001825]
[1739836629275,2.379,2743.7,2743.4,1.81684825]
[1739836629572,3.7754,2743.9,2743.4,1.81684825]
[1739836629573,3.2078,2743.9,2743.6,1.26334825]
[1739836629769,3.2078,2743.9,2743.8,1.84644825]
[1739836629977,0.58304,2744.1,2743.9,0.58306]
[1739836630173,9.9100489,2744.2,2744.0,2.41439825]
[1739836630370,9.9100489,2744.2,2744.1,1.0742]
[1739836630571,7.5320489,2744.2,2744.1,1.0742]
[1739836630879,9.9100389,2744.2,2744.1,1.0742]
[1739836631076,9.3270189,2744.2,2744.1,1.65724]
[1739836631776,6.9490189,2744.2,2744.1,1.65724]
[1739836632680,7.5320389,2744.2,2744.1,1.65724]
[1739836632879,6.9490189,2744.2,2744.1,1.65724]
[1739836633180,0.00546647,2744.2,2744.1,1.65724]
[1739836633784,0.00546647,2744.2,2744.1,5.1585577]
[1739836634881,0.00546647,2744.2,2744.1,4.86504]
[1739836636280,2.9123,2744.8,2744.5,0.58294]
[1739836636577,2.9123,2744.8,2744.6,2.92044825]
[1739836636784,0.58293,2744.7,2744.6,1.6571]
[1739836641887,2.9123,2744.8,2744.6,3.50336825]
[1739836642184,3.49519,2744.8,2744.6,3.50336825]
[1739836642582,0.58291,2744.7,2744.6,2.92044825]
[1739836642885,0.58291,2744.7,2744.6,3.50337825]
[1739836644086,2.378,2744.8,2744.7,0.58291]
[1739836644289,0.00546647,2744.9,2744.8,0.58289]
[1739836644480,0.00546647,2744.9,2744.8,1.84623825]
[1739836650381,0.00546647,2744.9,2744.8,3.1095865]
[1739836651084,0.00546647,2744.9,2744.8,1.84623825]
[1739836657593,0.00546647,2744.9,2744.8,3.1095865]
[1739836658194,0.00546647,2744.9,2744.8,1.84623825]
[1739836659184,0.00546647,2744.9,2744.8,3.1095865]
[1739836659392,0.00546647,2744.9,2744.8,1.84623825]
[1739836663997,0.00546647,2744.9,2744.8,3.1095865]
[1739836664393,1.0912,2745.4,2744.8,2.5266965]
[1739836664597,1.0912,2745.4,2745.3,0.58278]
[1739836664794,1.0912,2745.4,2745.3,3.79058]
[1739836664992,1.0912,2745.4,2745.3,0.58278]
[1739836665499,1.0912,2745.4,2745.3,3.79058]
[1739836665694,1.67396,2745.4,2745.3,3.79058]
[1739836666293,1.67396,2745.4,2745.3,3.2078]
[1739836666498,1.67396,2745.4,2745.3,3.79058]
[1739836666996,1.67396,2745.4,2745.3,0.58278]
[1739836669206,1.67398,2745.4,2745.2,1.26334825]
[1739836670406,1.67398,2745.4,2745.3,0.58278]
[1739836671097,1.0912,2745.4,2745.3,0.58278]
[1739836671497,1.67396,2745.4,2745.3,0.58278]
[1739836671901,1.0912,2745.4,2745.3,0.58278]
[1739836672406,1.67396,2745.4,2745.3,0.58278]
[1739836674605,1.67396,2745.4,2745.2,1.84613825]
[1739836674606,1.0912,2745.4,2745.2,1.84613825]
[1739836674807,0.58278,2745.3,2745.2,1.84613825]
[1739836675109,1.67398,2745.4,2745.3,0.58278]
[1739836676710,1.67396,2745.4,2745.3,0.58278]
[1739836680609,1.67396,2745.4,2745.3,1.14388]
[1739836681315,1.67396,2745.4,2745.3,0.5611]
[1739836681517,1.67396,2745.4,2745.3,1.14388]
[1739836682827,1.67396,2745.4,2745.3,4.35168]
[1739836683015,1.0912,2745.4,2745.3,4.35168]
[1739836683414,0.571,2745.5,2745.3,3.7689]
[1739836683613,0.571,2745.5,2745.4,1.84610825]
[1739836684519,1.15374,2745.5,2745.4,1.84610825]
[1739836687631,0.571,2745.5,2745.4,1.84610825]
[1739836689327,1.15374,2745.5,2745.4,1.84610825]
[1739836690231,0.58274,2745.5,2745.4,1.84610825]
[1739836690626,2.95773,2745.6,2745.5,0.58274]
[1739836693224,2.375,2745.6,2745.5,0.58274]
[1739836696036,2.95772,2745.6,2745.5,0.58274]
[1739836697635,1.1082,2745.7,2745.4,2.31364825]
[1739836697935,1.1552,2745.7,2745.6,3.79052]
[1739836698531,1.1552,2745.7,2745.6,3.2078]
[1739836700040,1.1552,2745.7,2745.5,0.58274]
[1739836700241,0.58272,2745.6,2745.5,0.58274]
[1739836701241,1.1552,2745.7,2745.6,0.58272]
[1739836701436,3.52921,2745.7,2745.5,0.58273]
[1739836702036,3.52921,2745.7,2745.6,0.58272]
[1739836702236,3.52921,2745.7,2745.5,0.58273]
[1739836702432,3.52921,2745.7,2745.4,2.31364825]
[1739836703041,3.52921,2745.7,2745.5,0.58272]
[1739836703243,2.9465,2745.7,2745.5,0.58272]
[1739836703439,3.52921,2745.7,2745.5,0.58274]
[1739836703942,3.52921,2745.7,2745.6,0.524]
[1739836710443,2.9465,2745.7,2745.4,1.0503]
[1739836710644,0.58274,2745.5,2745.4,0.5293]
[1739836710846,0.58276,2745.4,2745.3,3.2078]
[1739836711747,0.58287,2744.9,2744.7,3.2078]
[1739836712546,2.373,2745.1,2744.8,1.26334825]
[1739836712845,2.95583,2745.1,2745.0,1.26334825]
[1739836714050,0.58285,2745.0,2744.9,0.5654]
[1739836714647,1.11245,2745.0,2744.9,0.5654]
[1739836716044,0.58287,2744.9,2744.8,1.26334825]
[1739836716439,0.5296,2745.0,2744.7,0.5629]
[1739836716645,0.58289,2744.8,2744.7,0.5629]
[1739836732565,5.56924825,2744.9,2744.4,1.26881472]
[1739836732761,0.5428,2744.7,2744.5,0.5274]
[1739836732961,0.58293,2744.6,2744.5,0.5274]
[1739836739468,0.58293,2744.6,2744.5,1.11035]
[1739836739669,2.373,2744.7,2744.5,1.11035]
[1739836739872,2.95593,2744.7,2744.6,0.5415]
[1739836742188,2.95593,2744.7,2744.6,1.12443]
[1739836742607,2.95593,2744.7,2744.6,0.5415]
[1739836743968,2.373,2744.7,2744.6,0.5415]
[1739836744172,2.373,2744.8,2744.6,1.80484825]
[1739836744377,0.58291,2744.8,2744.7,0.58291]
[1739836744768,3.2078,2745.2,2744.6,5.01264825]
[1739836744974,2.95584,2745.1,2744.9,1.84619825]
[1739836745180,2.95584,2745.1,2745.0,1.6636]
[1739836745474,2.95584,2745.1,2745.0,1.0851]
[1739836745678,3.48314,2745.1,2745.0,1.0851]
[1739836747571,2.95584,2745.1,2745.0,1.0851]
[1739836754498,2.373,2745.1,2745.0,1.66795]
[1739836754697,2.95583,2745.1,2745.0,1.66795]
[1739836754898,0.58283,2745.1,2745.0,1.0851]
[1739836755899,0.58283,2745.1,2745.0,1.66795]
[1739836756296,0.58283,2745.1,2745.0,1.0851]
[1739836756589,0.58283,2745.1,2745.0,1.66795]
[1739836757175,0.5273,2745.4,2745.0,2.34844825]
[1739836757373,2.372,2745.4,2745.1,0.5411]
[1739836757584,0.58281,2745.2,2745.0,2.34844825]
[1739836757778,0.58281,2745.2,2745.1,0.5411]
[1739836758476,0.58285,2745.0,2744.9,3.2078]
[1739836758784,2.95485,2745.0,2744.9,3.2078]
[1739836758984,2.372,2745.0,2744.7,0.5677]
[1739836759286,0.58289,2744.8,2744.7,0.5677]
[1739836771176,0.58289,2744.8,2744.7,1.15061]
[1739836774387,2.372,2745.0,2744.7,0.5677]
[1739836774781,0.58289,2744.8,2744.7,1.15059]